[Event "*** SCC Grand Prix: Titled Tuesday Blitz"]
[Site "Chess.com"]
[Date "2020.10.13"]
[Round "8"]
[White "amintabatabaei"]
[Black "Azerichess"]
[Result "0-1"]
[WhiteElo "2918"]
[BlackElo "2970"]
[TimeControl "180+1"]
[EndTime "11:33:51 PDT"]
[Termination "Azerichess won on time"]

1. d4 {[%clk 0:03:00.9]} 1... Nf6 {[%clk 0:02:58.5]} 2. Nf3 {[%clk 0:03:01.2]}
2... g6 {[%clk 0:02:58.6]} 3. Bf4 {[%clk 0:03:01.3]} 3... Bg7 {[%clk 0:02:58.2]}
4. e3 {[%clk 0:03:01.9]} 4... O-O {[%clk 0:02:57.4]} 5. Be2 {[%clk 0:03:02.2]}
5... d6 {[%clk 0:02:57.6]} 6. O-O {[%clk 0:03:02.3]} 6... Nbd7 {[%clk
0:02:58.2]} 7. h3 {[%clk 0:03:01.6]} 7... Qe8 {[%clk 0:02:55.5]} 8. c4 {[%clk
0:02:59.4]} 8... e5 {[%clk 0:02:55.7]} 9. Bh2 {[%clk 0:02:58.1]} 9... Qe7 {[%clk
0:02:49.7]} 10. Nc3 {[%clk 0:02:58]} 10... c6 {[%clk 0:02:38.1]} 11. Qc2 {[%clk
0:02:52.9]} 11... Re8 {[%clk 0:02:33.3]} 12. dxe5 {[%clk 0:02:44.3]} 12... Nxe5
{[%clk 0:02:28.7]} 13. Nxe5 {[%clk 0:02:42.4]} 13... dxe5 {[%clk 0:02:29.6]} 14.
Rfd1 {[%clk 0:02:40.7]} 14... Bf5 {[%clk 0:02:20.9]} 15. Bd3 {[%clk 0:02:36.8]}
15... Bxd3 {[%clk 0:02:18.5]} 16. Rxd3 {[%clk 0:02:37.7]} 16... Rad8 {[%clk
0:02:15.5]} 17. Rad1 {[%clk 0:02:37.2]} 17... Rxd3 {[%clk 0:02:14]} 18. Qxd3
{[%clk 0:02:31.4]} 18... h5 {[%clk 0:02:07.5]} 19. Bg3 {[%clk 0:02:25.4]} 19...
Qe6 {[%clk 0:01:55.6]} 20. Bh4 {[%clk 0:02:12.7]} 20... e4 {[%clk 0:01:47.6]}
21. Qe2 {[%clk 0:02:12.6]} 21... Nd7 {[%clk 0:01:44.1]} 22. Bg3 {[%clk 0:02:12]}
22... Bxc3 {[%clk 0:01:16.3]} 23. bxc3 {[%clk 0:02:12.9]} 23... Nc5 {[%clk
0:01:16.6]} 24. Rd6 {[%clk 0:02:08.8]} 24... Qe7 {[%clk 0:01:15.2]} 25. Qd2
{[%clk 0:01:33.8]} 25... h4 {[%clk 0:01:11.8]} 26. Bh2 {[%clk 0:01:32]} 26...
Nd3 {[%clk 0:01:12.4]} 27. Rd4 {[%clk 0:01:27.4]} 27... c5 {[%clk 0:00:58.6]}
28. Rd5 {[%clk 0:01:27.3]} 28... Rd8 {[%clk 0:00:58.6]} 29. Qc2 {[%clk
0:01:16.5]} 29... b6 {[%clk 0:00:52.9]} 30. f3 {[%clk 0:00:54.2]} 30... Rxd5
{[%clk 0:00:42.7]} 31. cxd5 {[%clk 0:00:54.9]} 31... Qg5 {[%clk 0:00:43.3]} 32.
Bf4 {[%clk 0:00:14.7]} 32... Qxd5 {[%clk 0:00:41.3]} 33. c4 {[%clk 0:00:14.7]}
33... Qf5 {[%clk 0:00:39.1]} 34. fxe4 {[%clk 0:00:10.5]} 34... Qxe4 {[%clk
0:00:40]} 35. Bg5 {[%clk 0:00:10.1]} 35... f6 {[%clk 0:00:39.2]} 36. Bxf6 {[%clk
0:00:03]} 36... Qxe3+ {[%clk 0:00:39]} 37. Kh1 {[%clk 0:00:03.9]} 37... Nf2+
{[%clk 0:00:36.6]} 38. Kh2 {[%clk 0:00:04.5]} 38... Qf4+ {[%clk 0:00:25.2]} 39.
Kg1 {[%clk 0:00:04.9]} 39... Nxh3+ {[%clk 0:00:25.6]} 40. gxh3 {[%clk
0:00:05.8]} 40... Qxf6 {[%clk 0:00:26.3]} 0-1

[Event "*** SCC Grand Prix: Titled Tuesday Blitz"]
[Site "Chess.com"]
[Date "2020.10.13"]
[Round "8"]
[White "boasovietica"]
[Black "anon569"]
[Result "1-0"]
[WhiteElo "2412"]
[BlackElo "2272"]
[TimeControl "180+1"]
[EndTime "11:33:51 PDT"]
[Termination "boasovietica won by resignation"]

1. e4 {[%clk 0:03:00.9]} 1... c5 {[%clk 0:02:57]} 2. Nf3 {[%clk 0:02:58.7]} 2...
d6 {[%clk 0:02:56]} 3. d4 {[%clk 0:02:58.3]} 3... cxd4 {[%clk 0:02:54.9]} 4.
Nxd4 {[%clk 0:02:59.2]} 4... Nf6 {[%clk 0:02:52.9]} 5. Nc3 {[%clk 0:02:59.1]}
5... a6 {[%clk 0:02:51.7]} 6. Be3 {[%clk 0:02:59.4]} 6... e6 {[%clk 0:02:50.3]}
7. Be2 {[%clk 0:02:58.8]} 7... Qc7 {[%clk 0:02:47.3]} 8. O-O {[%clk 0:02:56.5]}
8... Nbd7 {[%clk 0:02:35.8]} 9. f4 {[%clk 0:02:50.4]} 9... b5 {[%clk 0:02:21.4]}
10. Bf3 {[%clk 0:02:47.3]} 10... Bb7 {[%clk 0:02:20.3]} 11. f5 {[%clk
0:01:42.9]} 11... e5 {[%clk 0:02:16.6]} 12. Ne6 {[%clk 0:01:43]} 12... fxe6
{[%clk 0:02:10.7]} 13. fxe6 {[%clk 0:01:43]} 13... Nc5 {[%clk 0:02:09.5]} 14.
Nd5 {[%clk 0:01:42.8]} 14... Nxd5 {[%clk 0:01:48.1]} 15. exd5 {[%clk 0:01:39.8]}
15... O-O-O {[%clk 0:01:47.8]} 16. c4 {[%clk 0:01:35.3]} 16... b4 {[%clk
0:01:16.2]} 17. b3 {[%clk 0:01:23.9]} 17... Be7 {[%clk 0:01:15.1]} 18. a3 {[%clk
0:01:23.9]} 18... bxa3 {[%clk 0:01:06.4]} 19. b4 {[%clk 0:01:22.3]} 19... e4
{[%clk 0:00:42.7]} 20. bxc5 {[%clk 0:01:17.9]} 20... exf3 {[%clk 0:00:41.2]} 21.
c6 {[%clk 0:01:15.5]} 21... Bxc6 {[%clk 0:00:37]} 22. dxc6 {[%clk 0:01:12.5]}
22... Qxc6 {[%clk 0:00:29.5]} 23. Rxa3 {[%clk 0:01:03.9]} 23... Kc7 {[%clk
0:00:24.5]} 24. Rxf3 {[%clk 0:00:58.5]} 24... Rhf8 {[%clk 0:00:22]} 25. Rb3
{[%clk 0:00:55.5]} 25... Rxf3 {[%clk 0:00:17.2]} 26. Bb6+ {[%clk 0:00:53.2]}
26... Kc8 {[%clk 0:00:17.3]} 27. Qxf3 {[%clk 0:00:34.1]} 27... Qxf3 {[%clk
0:00:16]} 28. Rxf3 {[%clk 0:00:30.9]} 28... Rf8 {[%clk 0:00:15.7]} 29. Rxf8+
{[%clk 0:00:27.6]} 29... Bxf8 {[%clk 0:00:16.1]} 30. Kf2 {[%clk 0:00:27.7]}
30... Kb7 {[%clk 0:00:15]} 31. Bd8 {[%clk 0:00:21.3]} 31... Kc6 {[%clk
0:00:11.1]} 32. e7 {[%clk 0:00:20.8]} 32... Bxe7 {[%clk 0:00:10.4]} 33. Bxe7
{[%clk 0:00:21]} 33... Kc5 {[%clk 0:00:10.8]} 34. Ke3 {[%clk 0:00:21]} 34...
Kxc4 {[%clk 0:00:11.2]} 35. Bxd6 {[%clk 0:00:21.1]} 35... a5 {[%clk 0:00:11.3]}
36. Kf4 {[%clk 0:00:20.8]} 36... Kb3 {[%clk 0:00:10.8]} 37. Kg5 {[%clk
0:00:19.8]} 37... a4 {[%clk 0:00:11.7]} 38. Be5 {[%clk 0:00:20]} 38... a3 {[%clk
0:00:08.4]} 39. Bxg7 {[%clk 0:00:19.4]} 1-0

[Event "*** SCC Grand Prix: Titled Tuesday Blitz"]
[Site "Chess.com"]
[Date "2020.10.13"]
[Round "8"]
[White "margarita_2703"]
[Black "TST2014"]
[Result "1-0"]
[WhiteElo "2409"]
[BlackElo "2524"]
[TimeControl "180+1"]
[EndTime "11:33:53 PDT"]
[Termination "margarita_2703 won by checkmate"]

1. Nf3 {[%clk 0:02:58.3]} 1... Nf6 {[%clk 0:02:58.9]} 2. c4 {[%clk 0:02:57.6]}
2... g6 {[%clk 0:02:58.3]} 3. Nc3 {[%clk 0:02:58]} 3... Bg7 {[%clk 0:02:58.4]}
4. e4 {[%clk 0:02:58.5]} 4... O-O {[%clk 0:02:58.6]} 5. d4 {[%clk 0:02:59]} 5...
d6 {[%clk 0:02:58.8]} 6. Be2 {[%clk 0:02:59.4]} 6... e5 {[%clk 0:02:56.8]} 7.
O-O {[%clk 0:02:59.7]} 7... Nc6 {[%clk 0:02:56.1]} 8. d5 {[%clk 0:02:59.9]} 8...
Ne7 {[%clk 0:02:56]} 9. b4 {[%clk 0:03:00.2]} 9... Nh5 {[%clk 0:02:54.7]} 10. g3
{[%clk 0:02:58.7]} 10... Bh3 {[%clk 0:02:53.1]} 11. Re1 {[%clk 0:02:56.7]} 11...
h6 {[%clk 0:02:52.9]} 12. Nd2 {[%clk 0:02:46.6]} 12... Nf6 {[%clk 0:02:48.8]}
13. c5 {[%clk 0:02:46.5]} 13... Qd7 {[%clk 0:02:35.9]} 14. a4 {[%clk 0:02:42.6]}
14... Ng4 {[%clk 0:02:34.1]} 15. Nc4 {[%clk 0:02:35.7]} 15... f5 {[%clk
0:02:29.8]} 16. f3 {[%clk 0:02:32.6]} 16... Nf6 {[%clk 0:02:20.5]} 17. b5 {[%clk
0:02:31.3]} 17... b6 {[%clk 0:02:18.5]} 18. cxd6 {[%clk 0:02:30]} 18... cxd6
{[%clk 0:02:18]} 19. Ba3 {[%clk 0:02:30]} 19... Rac8 {[%clk 0:02:13.2]} 20. Rc1
{[%clk 0:02:28.1]} 20... Rc5 {[%clk 0:02:12.3]} 21. Bxc5 {[%clk 0:02:26.8]}
21... bxc5 {[%clk 0:02:11.4]} 22. a5 {[%clk 0:02:23.8]} 22... h5 {[%clk
0:02:11.2]} 23. b6 {[%clk 0:02:22.8]} 23... axb6 {[%clk 0:02:08.4]} 24. axb6
{[%clk 0:02:22.5]} 24... Bh6 {[%clk 0:02:08.5]} 25. Rb1 {[%clk 0:02:21.3]} 25...
fxe4 {[%clk 0:02:08.5]} 26. fxe4 {[%clk 0:02:20.7]} 26... Ng4 {[%clk 0:02:08.6]}
27. b7 {[%clk 0:02:16.8]} 27... Rb8 {[%clk 0:02:07.8]} 28. Qa4 {[%clk
0:02:07.8]} 28... Qd8 {[%clk 0:01:53.8]} 29. Bxg4 {[%clk 0:01:55.1]} 29... Bxg4
{[%clk 0:01:48.8]} 30. Rb6 {[%clk 0:01:52.8]} 30... Qc7 {[%clk 0:01:25]} 31. Nb5
{[%clk 0:01:46]} 31... Qd7 {[%clk 0:01:14.6]} 32. Rxd6 {[%clk 0:01:44.6]} 32...
Qxb7 {[%clk 0:01:13.6]} 33. Rb6 {[%clk 0:01:39.4]} 33... Qc8 {[%clk 0:01:07.3]}
34. Rxb8 {[%clk 0:01:38.1]} 34... Qxb8 {[%clk 0:01:07.3]} 35. Nbd6 {[%clk
0:01:25.4]} 35... h4 {[%clk 0:00:50.2]} 36. Qe8+ {[%clk 0:01:21.4]} 36... Qxe8
{[%clk 0:00:49.4]} 37. Nxe8 {[%clk 0:01:21.4]} 37... Bg5 {[%clk 0:00:31.1]} 38.
Nxe5 {[%clk 0:01:17.2]} 38... Bc8 {[%clk 0:00:29.8]} 39. d6 {[%clk 0:01:11.2]}
39... Kf8 {[%clk 0:00:08.7]} 40. Nc7 {[%clk 0:01:07]} 40... Bd2 {[%clk
0:00:05.3]} 41. Rf1+ {[%clk 0:01:03.2]} 41... Nf5 {[%clk 0:00:05.6]} 42. exf5
{[%clk 0:01:00.5]} 42... Bb7 {[%clk 0:00:05.6]} 43. Nxg6+ {[%clk 0:00:51.7]}
43... Kg7 {[%clk 0:00:05]} 44. d7 {[%clk 0:00:41.8]} 44... Be3+ {[%clk
0:00:04.8]} 45. Rf2 {[%clk 0:00:41.9]} 45... c4 {[%clk 0:00:03.1]} 46. d8=Q
{[%clk 0:00:40.4]} 46... hxg3 {[%clk 0:00:02.7]} 47. hxg3 {[%clk 0:00:39.6]}
47... c3 {[%clk 0:00:02.6]} 48. Qf8+ {[%clk 0:00:38.6]} 48... Kh7 {[%clk
0:00:02.1]} 49. Qh8# {[%clk 0:00:37.2]} 1-0

[Event "*** SCC Grand Prix: Titled Tuesday Blitz"]
[Site "Chess.com"]
[Date "2020.10.13"]
[Round "8"]
[White "Ginger_GM"]
[Black "Balla_Tamas"]
[Result "1-0"]
[WhiteElo "2606"]
[BlackElo "2459"]
[TimeControl "180+1"]
[EndTime "11:33:55 PDT"]
[Termination "Ginger_GM won by resignation"]

1. c4 {[%clk 0:03:00.9]} 1... c5 {[%clk 0:02:58.1]} 2. Nc3 {[%clk 0:03:00.7]}
2... Nc6 {[%clk 0:02:57.6]} 3. g3 {[%clk 0:03:00.6]} 3... g6 {[%clk 0:02:57.2]}
4. Bg2 {[%clk 0:03:00.8]} 4... Bg7 {[%clk 0:02:57.8]} 5. e4 {[%clk 0:03:00.5]}
5... e6 {[%clk 0:02:57.5]} 6. Nge2 {[%clk 0:03:00.5]} 6... Nge7 {[%clk
0:02:57.6]} 7. O-O {[%clk 0:03:00.4]} 7... O-O {[%clk 0:02:56.9]} 8. d3 {[%clk
0:03:00.6]} 8... d6 {[%clk 0:02:57]} 9. Rb1 {[%clk 0:03:00.2]} 9... Rb8 {[%clk
0:02:56.4]} 10. a3 {[%clk 0:02:59.5]} 10... b6 {[%clk 0:02:55.6]} 11. b4 {[%clk
0:02:58.8]} 11... Bb7 {[%clk 0:02:56.1]} 12. b5 {[%clk 0:02:56.5]} 12... Nd4
{[%clk 0:02:55.8]} 13. Nxd4 {[%clk 0:02:50.3]} 13... cxd4 {[%clk 0:02:55.5]} 14.
Na2 {[%clk 0:02:49.9]} 14... d5 {[%clk 0:02:55.2]} 15. cxd5 {[%clk 0:02:43.1]}
15... exd5 {[%clk 0:02:53.1]} 16. e5 {[%clk 0:02:43.4]} 16... Bxe5 {[%clk
0:02:50.9]} 17. Nb4 {[%clk 0:02:42.7]} 17... Rc8 {[%clk 0:02:41.9]} 18. Re1
{[%clk 0:02:41.4]} 18... f6 {[%clk 0:02:35.1]} 19. Bb2 {[%clk 0:02:20.6]} 19...
Nf5 {[%clk 0:02:03.4]} 20. Qb3 {[%clk 0:02:18]} 20... Rc5 {[%clk 0:02:03.3]} 21.
a4 {[%clk 0:02:13.6]} 21... Qd7 {[%clk 0:01:59.7]} 22. Re2 {[%clk 0:01:36]}
22... Rfc8 {[%clk 0:01:51.4]} 23. Rbe1 {[%clk 0:01:35.3]} 23... R8c7 {[%clk
0:01:35]} 24. h4 {[%clk 0:01:31]} 24... Rc8 {[%clk 0:01:27.9]} 25. h5 {[%clk
0:01:27.3]} 25... Qd6 {[%clk 0:01:13.8]} 26. f4 {[%clk 0:01:07.5]} 26... Bxf4
{[%clk 0:01:13.9]} 27. gxf4 {[%clk 0:01:07.4]} 27... Qxf4 {[%clk 0:01:14.5]} 28.
Rf2 {[%clk 0:01:03.3]} 28... Qg3 {[%clk 0:01:09]} 29. Qd1 {[%clk 0:00:41.1]}
29... Nh4 {[%clk 0:00:55.3]} 30. Qe2 {[%clk 0:00:28.2]} 30... Rf8 {[%clk
0:00:32]} 31. Bxd4 {[%clk 0:00:26.9]} 31... Rc7 {[%clk 0:00:25.3]} 32. Qe6+
{[%clk 0:00:26.5]} 32... Rcf7 {[%clk 0:00:20.2]} 33. Bxf6 {[%clk 0:00:14.6]}
33... Bc8 {[%clk 0:00:20]} 34. Qxd5 {[%clk 0:00:13.3]} 34... Nxg2 {[%clk
0:00:19.4]} 35. Qxg2 {[%clk 0:00:13.4]} 35... Qxg2+ {[%clk 0:00:19.2]} 36. Rxg2
{[%clk 0:00:12.9]} 36... Rxf6 {[%clk 0:00:19.4]} 37. Nd5 {[%clk 0:00:13]} 37...
h6 {[%clk 0:00:19.7]} 38. Nxf6+ {[%clk 0:00:12.6]} 38... Rxf6 {[%clk 0:00:20]}
39. Rxg6+ {[%clk 0:00:13.3]} 39... Rxg6+ {[%clk 0:00:19.8]} 40. hxg6 {[%clk
0:00:14]} 40... Kg7 {[%clk 0:00:20.5]} 41. Re8 {[%clk 0:00:13.1]} 41... Bf5
{[%clk 0:00:19.6]} 42. Re7+ {[%clk 0:00:13.5]} 42... Kxg6 {[%clk 0:00:20.5]} 43.
Rxa7 {[%clk 0:00:13.4]} 43... Bxd3 {[%clk 0:00:21.4]} 44. Ra6 {[%clk 0:00:13.1]}
44... Kf5 {[%clk 0:00:21.4]} 45. Rxb6 {[%clk 0:00:13.4]} 45... Bc2 {[%clk
0:00:22.3]} 46. a5 {[%clk 0:00:13.7]} 46... Be4 {[%clk 0:00:20.8]} 47. a6 {[%clk
0:00:14]} 47... Ke5 {[%clk 0:00:21.7]} 48. Rxh6 {[%clk 0:00:13.7]} 48... Kd4
{[%clk 0:00:21.6]} 49. b6 {[%clk 0:00:14.1]} 1-0

[Event "*** SCC Grand Prix: Titled Tuesday Blitz"]
[Site "Chess.com"]
[Date "2020.10.13"]
[Round "8"]
[White "Korchmar_Vasiliy"]
[Black "bakki78"]
[Result "1-0"]
[WhiteElo "2600"]
[BlackElo "2741"]
[TimeControl "180+1"]
[EndTime "11:33:56 PDT"]
[Termination "Korchmar_Vasiliy won by resignation"]

1. d4 {[%clk 0:03:00.9]} 1... Nf6 {[%clk 0:02:59.3]} 2. Nf3 {[%clk 0:03:00]}
2... g6 {[%clk 0:02:57.4]} 3. Bg5 {[%clk 0:03:00]} 3... Bg7 {[%clk 0:02:56.2]}
4. Nbd2 {[%clk 0:03:00.6]} 4... O-O {[%clk 0:02:55.4]} 5. e3 {[%clk 0:03:01]}
5... d6 {[%clk 0:02:55.8]} 6. Bd3 {[%clk 0:03:00.7]} 6... Nc6 {[%clk 0:02:46.6]}
7. c3 {[%clk 0:02:59.3]} 7... h6 {[%clk 0:02:46.6]} 8. Bh4 {[%clk 0:02:57.2]}
8... e5 {[%clk 0:02:46.7]} 9. O-O {[%clk 0:02:50.2]} 9... Re8 {[%clk 0:02:46.3]}
10. e4 {[%clk 0:02:45]} 10... g5 {[%clk 0:02:38.9]} 11. Bg3 {[%clk 0:02:44.2]}
11... g4 {[%clk 0:02:39.3]} 12. dxe5 {[%clk 0:02:37.7]} 12... dxe5 {[%clk
0:02:37.5]} 13. Ne1 {[%clk 0:02:33.6]} 13... Nh5 {[%clk 0:02:37.6]} 14. Bb5
{[%clk 0:02:24.2]} 14... Nxg3 {[%clk 0:02:36.8]} 15. hxg3 {[%clk 0:02:25.1]}
15... h5 {[%clk 0:02:37.1]} 16. Nc4 {[%clk 0:02:12.7]} 16... Qg5 {[%clk
0:02:23.2]} 17. Ne3 {[%clk 0:02:04.4]} 17... Be6 {[%clk 0:02:21.3]} 18. Bxc6
{[%clk 0:01:49.8]} 18... bxc6 {[%clk 0:02:19.9]} 19. Qa4 {[%clk 0:01:50.4]}
19... Bd7 {[%clk 0:01:49.2]} 20. Nd3 {[%clk 0:01:45.5]} 20... Red8 {[%clk
0:01:48.3]} 21. Nc5 {[%clk 0:01:44.8]} 21... Be8 {[%clk 0:01:48.4]} 22. Rad1
{[%clk 0:01:36.8]} 22... Bf8 {[%clk 0:01:48.1]} 23. Qc4 {[%clk 0:01:27.8]} 23...
Rd6 {[%clk 0:01:43.1]} 24. Nf5 {[%clk 0:01:25]} 24... Rxd1 {[%clk 0:01:30]} 25.
Rxd1 {[%clk 0:01:25.9]} 25... Rd8 {[%clk 0:01:30]} 26. Rxd8 {[%clk 0:01:09.7]}
26... Qxd8 {[%clk 0:01:28.3]} 27. Nd3 {[%clk 0:01:10.2]} 27... Qf6 {[%clk
0:01:22.9]} 28. Qa6 {[%clk 0:00:57]} 28... Bd7 {[%clk 0:01:22.9]} 29. Qxa7
{[%clk 0:00:46.4]} 29... Bxf5 {[%clk 0:01:22.1]} 30. exf5 {[%clk 0:00:47.3]}
30... Qxf5 {[%clk 0:01:22.5]} 31. Qe3 {[%clk 0:00:40.7]} 31... e4 {[%clk
0:01:22.2]} 32. Nf4 {[%clk 0:00:40.2]} 32... Bc5 {[%clk 0:01:20.6]} 33. Qd2
{[%clk 0:00:39.7]} 33... Kg7 {[%clk 0:01:20.6]} 34. b4 {[%clk 0:00:27.9]} 34...
Bd6 {[%clk 0:01:17.8]} 35. Qd4+ {[%clk 0:00:17.2]} 35... Be5 {[%clk 0:01:12.2]}
36. Qe3 {[%clk 0:00:13.8]} 36... h4 {[%clk 0:01:12.2]} 37. a4 {[%clk 0:00:13]}
37... hxg3 {[%clk 0:01:06.9]} 38. fxg3 {[%clk 0:00:13.9]} 38... Bxf4 {[%clk
0:00:56.7]} 39. Qxf4 {[%clk 0:00:09.3]} 39... Qe6 {[%clk 0:00:56.9]} 40. Qe3
{[%clk 0:00:08.4]} 40... f5 {[%clk 0:00:51]} 41. a5 {[%clk 0:00:07.5]} 41... Kg6
{[%clk 0:00:50.1]} 42. a6 {[%clk 0:00:05.4]} 42... Qa2 {[%clk 0:00:49.9]} 43. a7
{[%clk 0:00:05.7]} 43... Qa1+ {[%clk 0:00:47.5]} 44. Kh2 {[%clk 0:00:05.8]}
44... Qa6 {[%clk 0:00:46.9]} 45. Qc5 {[%clk 0:00:02.9]} 45... Qa4 {[%clk
0:00:41.9]} 46. c4 {[%clk 0:00:02.7]} 46... Qa6 {[%clk 0:00:41.4]} 47. b5 {[%clk
0:00:02.7]} 47... cxb5 {[%clk 0:00:41.8]} 48. cxb5 {[%clk 0:00:03.3]} 48... Qa5
{[%clk 0:00:42.3]} 49. Qc6+ {[%clk 0:00:03.2]} 49... Kg5 {[%clk 0:00:42.1]} 50.
a8=Q {[%clk 0:00:02.7]} 50... Qd2 {[%clk 0:00:41.2]} 51. Qg8+ {[%clk 0:00:02.9]}
1-0

[Event "*** SCC Grand Prix: Titled Tuesday Blitz"]
[Site "Chess.com"]
[Date "2020.10.13"]
[Round "8"]
[White "Piotrek1979"]
[Black "Srisshhhtea"]
[Result "0-1"]
[WhiteElo "2408"]
[BlackElo "2292"]
[TimeControl "180+1"]
[EndTime "11:33:59 PDT"]
[Termination "Srisshhhtea won on time"]

1. f3 {[%clk 0:03:00.9]} 1... d5 {[%clk 0:02:57.4]} 2. d4 {[%clk 0:02:58.8]}
2... e6 {[%clk 0:02:53.1]} 3. Bf4 {[%clk 0:02:57.5]} 3... Bd6 {[%clk 0:02:48.6]}
4. Qd2 {[%clk 0:02:57.5]} 4... Ne7 {[%clk 0:02:42.7]} 5. Nc3 {[%clk 0:02:41.6]}
5... Bxf4 {[%clk 0:02:37.4]} 6. Qxf4 {[%clk 0:02:40.7]} 6... Ng6 {[%clk
0:02:37.8]} 7. Qg3 {[%clk 0:02:39.1]} 7... c5 {[%clk 0:02:26]} 8. O-O-O {[%clk
0:02:20.7]} 8... O-O {[%clk 0:02:20.6]} 9. dxc5 {[%clk 0:02:15.6]} 9... Qa5
{[%clk 0:02:19.3]} 10. e4 {[%clk 0:02:12.8]} 10... dxe4 {[%clk 0:02:13.7]} 11.
fxe4 {[%clk 0:02:09.5]} 11... Nd7 {[%clk 0:02:08.9]} 12. Nf3 {[%clk 0:02:06.3]}
12... Nxc5 {[%clk 0:02:07.3]} 13. h4 {[%clk 0:01:59.1]} 13... Rd8 {[%clk
0:01:57.6]} 14. Rxd8+ {[%clk 0:01:51.5]} 14... Qxd8 {[%clk 0:01:56.5]} 15. h5
{[%clk 0:01:51.9]} 15... Nf8 {[%clk 0:01:54.9]} 16. h6 {[%clk 0:01:44.2]} 16...
Qf6 {[%clk 0:01:26.4]} 17. hxg7 {[%clk 0:01:41.4]} 17... Qxg7 {[%clk 0:01:26.8]}
18. Qd6 {[%clk 0:01:41]} 18... b6 {[%clk 0:01:16.7]} 19. Rh3 {[%clk 0:00:46.9]}
19... Bb7 {[%clk 0:01:14.8]} 20. Rg3 {[%clk 0:00:40.7]} 20... Ng6 {[%clk
0:01:14.5]} 21. Ne5 {[%clk 0:00:35.3]} 21... Nxe4 {[%clk 0:00:59.9]} 22. Nxe4
{[%clk 0:00:34.1]} 22... Bxe4 {[%clk 0:01:00.8]} 23. Nd7 {[%clk 0:00:22.2]}
23... Rc8 {[%clk 0:00:51.3]} 24. c3 {[%clk 0:00:17]} 24... Qh6+ {[%clk
0:00:33.1]} 25. Qd2 {[%clk 0:00:16.4]} 25... Qxd2+ {[%clk 0:00:30.7]} 26. Kxd2
{[%clk 0:00:17.3]} 26... Rd8 {[%clk 0:00:31.2]} 27. Ke3 {[%clk 0:00:18]} 27...
Bb1 {[%clk 0:00:23.8]} 28. Bb5 {[%clk 0:00:14.8]} 28... Bxa2 {[%clk 0:00:20.8]}
29. Rh3 {[%clk 0:00:09.8]} 29... Kg7 {[%clk 0:00:20.5]} 30. g4 {[%clk 0:00:05]}
30... Bd5 {[%clk 0:00:20.5]} 31. g5 {[%clk 0:00:04.8]} 31... a6 {[%clk
0:00:15.3]} 32. Bd3 {[%clk 0:00:01]} 32... Rxd7 {[%clk 0:00:14.8]} 33. Bxg6
{[%clk 0:00:01.7]} 33... hxg6 {[%clk 0:00:14.6]} 34. Kf4 {[%clk 0:00:02.6]}
34... b5 {[%clk 0:00:14.7]} 35. Ke5 {[%clk 0:00:02.3]} 35... Bc4 {[%clk
0:00:15.6]} 36. Ke4 {[%clk 0:00:02]} 36... a5 {[%clk 0:00:15.9]} 37. Ke5 {[%clk
0:00:02.9]} 37... a4 {[%clk 0:00:16.8]} 38. Rg3 {[%clk 0:00:02.5]} 38... Rd2
{[%clk 0:00:16.5]} 39. Rf3 {[%clk 0:00:03.4]} 39... Rxb2 {[%clk 0:00:16.6]} 40.
Kd6 {[%clk 0:00:03.7]} 40... a3 {[%clk 0:00:16.8]} 41. Ke7 {[%clk 0:00:04.6]}
41... e5 {[%clk 0:00:15.7]} 42. Rf1 {[%clk 0:00:02.8]} 42... Bxf1 {[%clk
0:00:14.8]} 0-1

[Event "*** SCC Grand Prix: Titled Tuesday Blitz"]
[Site "Chess.com"]
[Date "2020.10.13"]
[Round "8"]
[White "Oleksandr_Bortnyk"]
[Black "Ermito2020"]
[Result "1-0"]
[WhiteElo "2891"]
[BlackElo "2677"]
[TimeControl "180+1"]
[EndTime "11:34:01 PDT"]
[Termination "Oleksandr_Bortnyk won by resignation"]

1. e4 {[%clk 0:03:00.9]} 1... e6 {[%clk 0:03:00.5]} 2. d4 {[%clk 0:03:00.8]}
2... d5 {[%clk 0:03:01.2]} 3. Nc3 {[%clk 0:03:01.7]} 3... Bb4 {[%clk 0:03:00.9]}
4. Ne2 {[%clk 0:02:59.3]} 4... Nc6 {[%clk 0:02:59]} 5. a3 {[%clk 0:02:58.9]}
5... Ba5 {[%clk 0:02:59]} 6. e5 {[%clk 0:02:56.6]} 6... Nge7 {[%clk 0:02:57.9]}
7. b4 {[%clk 0:02:48.1]} 7... Bb6 {[%clk 0:02:57.2]} 8. Na4 {[%clk 0:02:25.9]}
8... O-O {[%clk 0:02:54.3]} 9. Bg5 {[%clk 0:02:22.5]} 9... h6 {[%clk 0:02:35.8]}
10. Bh4 {[%clk 0:02:20.6]} 10... Qe8 {[%clk 0:02:34.9]} 11. Nxb6 {[%clk
0:02:20.6]} 11... axb6 {[%clk 0:02:34.3]} 12. f4 {[%clk 0:02:18.1]} 12... Nf5
{[%clk 0:02:30.7]} 13. Bf2 {[%clk 0:02:18.3]} 13... f6 {[%clk 0:02:30.3]} 14. g4
{[%clk 0:02:18.7]} 14... Nfe7 {[%clk 0:02:27.4]} 15. exf6 {[%clk 0:01:53.6]}
15... Rxf6 {[%clk 0:02:27]} 16. Bg2 {[%clk 0:01:53.2]} 16... Ng6 {[%clk
0:02:06.6]} 17. Bg3 {[%clk 0:01:52.7]} 17... Bd7 {[%clk 0:01:21]} 18. O-O {[%clk
0:01:30.3]} 18... Nce7 {[%clk 0:01:21.6]} 19. Nc1 {[%clk 0:01:14.4]} 19... Bb5
{[%clk 0:01:21.5]} 20. Nd3 {[%clk 0:01:11.8]} 20... Qf7 {[%clk 0:01:18]} 21. Ne5
{[%clk 0:00:38.9]} 21... Qf8 {[%clk 0:01:04.7]} 22. Qd2 {[%clk 0:00:38.2]} 22...
Nxe5 {[%clk 0:00:50]} 23. dxe5 {[%clk 0:00:28.9]} 23... Bxf1 {[%clk 0:00:45.3]}
24. exf6 {[%clk 0:00:18.1]} 24... Bxg2 {[%clk 0:00:45.2]} 25. fxe7 {[%clk
0:00:15.2]} 25... Qf6 {[%clk 0:00:45.8]} 26. Re1 {[%clk 0:00:07.8]} 26... Be4
{[%clk 0:00:46.1]} 27. Rxe4 {[%clk 0:00:08]} 27... dxe4 {[%clk 0:00:46]} 28. Qd7
{[%clk 0:00:08.9]} 28... Qf7 {[%clk 0:00:45]} 29. Qd8+ {[%clk 0:00:06.4]} 29...
Qe8 {[%clk 0:00:45]} 30. Bh4 {[%clk 0:00:06.9]} 30... g5 {[%clk 0:00:41.5]} 31.
Qxe8+ {[%clk 0:00:06.4]} 31... Rxe8 {[%clk 0:00:41]} 32. fxg5 {[%clk 0:00:07.3]}
32... Rxe7 {[%clk 0:00:40.3]} 33. gxh6 {[%clk 0:00:07.6]} 33... Rd7 {[%clk
0:00:40.8]} 34. Bg5 {[%clk 0:00:06.3]} 34... Rd5 {[%clk 0:00:38.4]} 35. h4
{[%clk 0:00:06]} 35... Rd4 {[%clk 0:00:25.7]} 36. Be3 {[%clk 0:00:05.9]} 36...
Rc4 {[%clk 0:00:25.5]} 37. g5 {[%clk 0:00:06.8]} 37... Rxc2 {[%clk 0:00:21.8]}
38. g6 {[%clk 0:00:05.6]} 38... e5 {[%clk 0:00:17.2]} 39. h7+ {[%clk 0:00:05.5]}
39... Kg7 {[%clk 0:00:16.6]} 40. h5 {[%clk 0:00:02.5]} 40... Re2 {[%clk
0:00:14.3]} 41. Bg5 {[%clk 0:00:02.4]} 41... e3 {[%clk 0:00:12]} 42. Bf6+ {[%clk
0:00:02.5]} 42... Kxf6 {[%clk 0:00:12.2]} 43. h8=Q+ {[%clk 0:00:03.4]} 43... Kg5
{[%clk 0:00:12.5]} 44. Qxe5+ {[%clk 0:00:03.6]} 44... Kg4 {[%clk 0:00:13]} 45.
g7 {[%clk 0:00:03]} 45... Re1+ {[%clk 0:00:13.4]} 46. Kg2 {[%clk 0:00:03.6]}
46... Re2+ {[%clk 0:00:13.8]} 47. Kf1 {[%clk 0:00:04.3]} 47... Rf2+ {[%clk
0:00:13.3]} 48. Ke1 {[%clk 0:00:04.8]} 48... Rg2 {[%clk 0:00:12.9]} 49. g8=Q+
{[%clk 0:00:05]} 1-0